fUST/lending_fUST_20250625
["ID","MTS","AMOUNT","RATE_DAILY","PERIOD"]
[367487948,1750819857782,-460.0,0.00019995,2]
[367487949,1750819857792,-460.0,0.00019995,2]
[367487950,1750819857801,-3000.0,0.0002,2]
[367487951,1750819857810,-300.0,0.0002,2]
[367487952,1750819857819,-4000.0,0.0002,4]
[367487953,1750819857828,-2000.0,0.00020059,2]
[367487954,1750819857838,-275.57983154,0.00020087,2]
[367487955,1750819857848,-25136.47832711,0.00020087,2]
[367487956,1750819857858,-207.4,0.00020087,2]
[367487957,1750819857867,-5000.0,0.00020087,2]
[367487958,1750819857876,-177.85,0.000201,2]
[367487959,1750819857886,-2507.89080019,0.00020112,2]
[367487960,1750819857895,-441.0,0.00020141,2]
[367487961,1750819857904,-1361.091,0.00020164,2]
[367487962,1750819857914,-230.898664,0.00020187,2]
[367487963,1750819857923,-3946.6786914,0.0002021,2]
[367487964,1750819858056,-2298.02274431,0.0002021,2]
[367487965,1750819858067,-587.0,0.0002022,2]
[367487966,1750819858076,-587.0,0.00020223,2]
[367487967,1750819858087,-1548.65,0.00020238,2]
[367487968,1750819858097,-1284.68,0.00020238,2]
[367487969,1750819858107,-1749.56,0.00020238,2]
[367487970,1750819858116,-1004.1,0.00020238,2]
[367487971,1750819858125,-460.0,0.00020238,2]
[367487972,1750819858135,-899.91,0.00020239,2]
[367487973,1750819858146,-460.0,0.00020239,2]
[367487974,1750819858157,-1860.25,0.00020239,2]
[367487975,1750819858166,-1227.14,0.00020239,2]
[367487976,1750819858175,-615.49,0.00020239,2]
[367487977,1750819858184,-541.36,0.00020239,2]
[367487978,1750819858193,-460.0,0.00020239,2]
[367487979,1750819858203,-460.0,0.00020239,2]
[367487980,1750819858215,-460.0,0.00020239,2]
[367487981,1750819858226,-460.0,0.00020239,2]
[367487982,1750819858235,-460.0,0.00020239,2]
[367487983,1750819858245,-151.0,0.0002024,2]
[367487984,1750819858255,-546.23,0.0002024,2]
[367487985,1750819858264,-151.0,0.0002024,2]
[367487986,1750819858273,-151.0,0.0002024,2]
[367487987,1750819858283,-1196.47,0.0002024,2]
[367487988,1750819858292,-460.0,0.0002024,2]
[367487989,1750819858302,-653.279441,0.0002024,2]
[367487990,1750819858312,-653.279441,0.0002024,2]
[367487991,1750819858322,-460.0,0.0002024,2]
[367487992,1750819858332,-542.36,0.0002024,2]
[367487993,1750819858341,-387.56,0.0002024,2]
[367487994,1750819858351,-3048.66,0.0002024,2]
[367487995,1750819858360,-460.0,0.0002024,2]
[367487996,1750819858369,-476.65,0.0002024,2]
[367487997,1750819858378,-460.0,0.0002024,2]
[367487998,1750819858387,-460.0,0.0002024,2]
[367487999,1750819858396,-1191.93,0.0002024,2]
[367488000,1750819858405,-460.0,0.0002024,2]
[367488001,1750819858414,-1455.28,0.0002024,2]
[367488002,1750819858424,-460.0,0.0002024,2]
[367488003,1750819858433,-460.0,0.0002024,2]
[367488004,1750819858442,-513.31,0.0002024,2]
[367488005,1750819858451,-1036.8,0.0002024,2]
[367488006,1750819858461,-460.0,0.0002024,2]
[367488007,1750819858470,-355.10763147,0.0002024,2]
[367488008,1750819858479,-1392.24,0.0002024,2]
[367488009,1750819858488,-460.0,0.0002024,2]
[367488010,1750819858498,-1023.24,0.0002024,2]
[367488011,1750819858507,-460.0,0.0002024,2]
[367488012,1750819858516,-151.0,0.0002024,2]
[367488013,1750819858525,-159.051972,0.0002024,2]
[367488014,1750819858534,-460.0,0.00020269,2]
[367488015,1750819858544,-460.0,0.00020269,2]
[367488016,1750819858553,-460.0,0.00020269,2]
[367488017,1750819858562,-524.21181985,0.0002032,3]
[367488018,1750819858572,-846.80634355,0.0002032,3]
[367488019,1750819858581,-12558.06783089,0.0002032,3]
[367488020,1750819858590,-213.69531788,0.0002032,3]
[367488021,1750819858599,-160.0,0.0002032,3]
[367488022,1750819858608,-151.0,0.00020383,2]
[367488023,1750819858617,-168.0,0.00020435,2]
[367488024,1750819858627,-6244.70143571,0.00020486,3]
[367488025,1750819858636,-1548.65,0.00020512,2]
[367488026,1750819858645,-1284.68,0.00020512,2]
[367488027,1750819858655,-1749.56,0.00020512,2]
[367488028,1750819858664,-1004.1,0.00020512,2]
[367488029,1750819858673,-460.0,0.00020512,2]
[367488030,1750819858682,-899.91,0.00020513,2]
[367488031,1750819858692,-460.0,0.00020513,2]
[367488032,1750819858701,-1860.25,0.00020513,2]
[367488033,1750819858711,-1227.14,0.00020513,2]
[367488034,1750819858720,-615.49,0.00020513,2]
[367488035,1750819858729,-541.36,0.00020513,2]
[367488036,1750819858738,-460.0,0.00020513,2]
[367488037,1750819858748,-460.0,0.00020513,2]
[367488038,1750819858757,-274.881857,0.00020513,2]
[367488039,1750819858766,-274.881857,0.00020513,2]
[367488040,1750819858774,-460.0,0.00020513,2]
[367488041,1750819858784,-1054.316626,0.00020513,2]
[367488042,1750819858793,-1054.316626,0.00020513,2]
[367488043,1750819858802,-460.0,0.00020513,2]
[367488044,1750819858811,-321.43740125,0.00020513,2]
[367488045,1750819858821,-546.23,0.00020514,2]
[367488046,1750819858830,-1196.47,0.00020514,2]
[367488047,1750819858839,-460.0,0.00020514,2]
[367488048,1750819858848,-460.0,0.00020514,2]
[367488049,1750819858858,-542.36,0.00020514,2]
[367488050,1750819858867,-3048.66,0.00020514,2]
[367488051,1750819858877,-455.24,0.00020514,2]
[367488052,1750819858886,-476.65,0.00020514,2]
[367488053,1750819858895,-460.0,0.00020514,2]
[367488054,1750819858904,-460.0,0.00020514,2]
[367488055,1750819858913,-1191.93,0.00020514,2]
[367488056,1750819858922,-460.0,0.00020514,2]
[367488057,1750819858931,-1455.28,0.00020514,2]
[367488058,1750819858940,-460.0,0.00020514,2]
[367488059,1750819858949,-460.0,0.00020514,2]
[367488060,1750819858958,-157.497869,0.00020514,2]
[367488061,1750819858967,-157.497869,0.00020514,2]
[367488062,1750819858976,-513.31,0.00020514,2]
[367488063,1750819858986,-1036.8,0.00020514,2]
[367488064,1750819858995,-460.0,0.00020514,2]
[367488065,1750819859005,-1392.24,0.00020514,2]
[367488066,1750819859013,-460.0,0.00020514,2]
[367488067,1750819859023,-1023.24,0.00020514,2]
[367488068,1750819859031,-460.0,0.00020514,2]
[367488069,1750819859041,-460.0,0.00020543,2]
[367488070,1750819859137,-460.0,0.00020543,2]
[367488071,1750819859148,-510.1650993,0.00020543,2]
[367488072,1750819859157,-526.3,0.00020547,14]
[367488073,1750819859166,-460.0,0.00020547,2]
[367488074,1750819859175,-465.01992274,0.00020547,2]
[367488075,1750819859184,-168.0,0.00020557,2]
[367488076,1750819859193,-5705.0,0.000206,2]
[367488077,1750819859203,-168.0,0.00020606,2]
[367488078,1750819859214,-178.669128,0.0002061,3]
[367488079,1750819859224,-967.027,0.00020631,2]
[367488080,1750819859233,-2161.0,0.00020631,2]
[367488081,1750819859243,-655.014,0.00020631,2]
[367488082,1750819859252,-150.0,0.00020631,2]
[367488083,1750819859262,-150.0,0.00020631,2]
[367488084,1750819859272,-5000.0,0.00020635,2]
[367488085,1750819859281,-151.0,0.00020635,2]
[367488086,1750819859291,-151.0,0.00020635,2]
[367488087,1750819859302,-151.0,0.00020635,2]
[367488088,1750819859311,-653.279441,0.00020635,2]
[367488089,1750819859321,-653.279441,0.00020635,2]
[367488090,1750819859331,-151.0,0.00020635,2]
[367488091,1750819859340,-151.0,0.00020635,2]
[367488092,1750819859349,-156.000617,0.00020635,2]
[367488093,1750819859358,-156.000617,0.00020635,2]
[367488094,1750819859367,-13186.03557868,0.00020717,2]
[367488095,1750819859376,-6244.70143571,0.00020762,3]
[367488096,1750819859385,-1548.65,0.00020786,2]
[367488097,1750819859394,-1284.68,0.00020786,2]
[367488098,1750819859404,-1749.56,0.00020786,2]
[367488099,1750819859413,-1004.1,0.00020786,2]
[367488100,1750819859423,-460.0,0.00020786,2]
[367488101,1750819859432,-899.91,0.00020787,2]
[367488102,1750819859441,-460.0,0.00020787,2]
[367488103,1750819859450,-1860.25,0.00020787,2]
[367488104,1750819859459,-1227.14,0.00020787,2]
[367488105,1750819859468,-615.49,0.00020787,2]
[367488106,1750819859477,-541.36,0.00020787,2]
[367488107,1750819859487,-460.0,0.00020787,2]
[367488108,1750819859496,-208.98710064,0.00020787,2]
[367488109,1750819859505,-460.0,0.00020787,2]
[367488110,1750819859514,-460.0,0.00020787,2]
[367488111,1750819859523,-546.23,0.00020788,2]
[367488112,1750819859532,-1196.47,0.00020788,2]
[367488113,1750819859541,-460.0,0.00020788,2]
[367488114,1750819859551,-460.0,0.00020788,2]
[367488115,1750819859560,-542.36,0.00020788,2]
[367488116,1750819859570,-3048.66,0.00020788,2]
[367488117,1750819859579,-476.65,0.00020788,2]
[367488118,1750819859588,-460.0,0.00020788,2]
[367488119,1750819859597,-190.54,0.00020788,2]
[367488120,1750819859606,-1191.93,0.00020788,2]
[367488121,1750819859615,-460.0,0.00020788,2]
[367488122,1750819859624,-1455.28,0.00020788,2]
[367488123,1750819859633,-460.0,0.00020788,2]
[367488124,1750819859642,-460.0,0.00020788,2]
[367488125,1750819859651,-513.31,0.00020788,2]
[367488126,1750819859660,-1036.8,0.00020788,2]
[367488127,1750819859669,-460.0,0.00020788,2]
[367488128,1750819859679,-1392.24,0.00020788,2]
[367488129,1750819859688,-460.0,0.00020788,2]
[367488130,1750819859697,-1023.24,0.00020788,2]
[367488131,1750819859705,-460.0,0.00020788,2]
[367488132,1750819859715,-460.0,0.00020817,2]
[367488133,1750819859725,-364.03327473,0.00020817,2]
[367488134,1750819859734,-526.3,0.00020821,15]
[367488135,1750819859742,-178.669128,0.00020853,4]
[367488136,1750819859751,-160.0,0.00021,2]
[367488137,1750819859760,-6244.70143571,0.00021038,4]
[367488138,1750819859769,-1548.65,0.0002106,2]
[367488139,1750819859778,-1284.68,0.0002106,2]
[367488140,1750819859787,-1749.56,0.0002106,2]
[367488141,1750819859796,-1004.1,0.0002106,2]
[367488142,1750819859805,-460.0,0.0002106,2]
[367488143,1750819859814,-899.91,0.00021061,2]
[367488144,1750819859824,-344.98,0.00021061,2]
[367488145,1750819859833,-1860.25,0.00021061,2]
[367488146,1750819859842,-1227.14,0.00021061,2]
[367488147,1750819859851,-615.49,0.00021061,2]
[367488148,1750819859861,-541.36,0.00021061,2]
[367488149,1750819859870,-460.0,0.00021061,2]
[367488150,1750819859878,-460.0,0.00021061,2]
[367488151,1750819859887,-460.0,0.00021061,2]
[367488152,1750819859896,-581.297617,0.00021062,2]
[367488153,1750819859906,-546.23,0.00021062,2]
[367488154,1750819859915,-1196.47,0.00021062,2]
[367488155,1750819859924,-460.0,0.00021062,2]
[367488156,1750819859933,-273.92,0.00021062,2]
[367488157,1750819859943,-542.36,0.00021062,2]
[367488158,1750819859952,-3048.66,0.00021062,2]
[367488159,1750819859962,-476.65,0.00021062,2]
[367488160,1750819859971,-460.0,0.00021062,2]
[367488161,1750819859980,-1191.93,0.00021062,2]
[367488162,1750819859989,-274.881857,0.00021062,2]
[367488163,1750819859998,-274.881856,0.00021062,2]
[367488164,1750819860007,-369.01927082,0.00021062,2]
[367488165,1750819860017,-1455.28,0.00021062,2]
[367488166,1750819860026,-1054.316626,0.00021062,2]
[367488167,1750819860035,-460.0,0.00021062,2]
[367488168,1750819860045,-157.497869,0.00021062,2]
[367488169,1750819860054,-1054.31662,0.00021062,2]
[367488170,1750819860064,-460.0,0.00021062,2]
[367488171,1750819860074,-157.497875,0.00021062,2]
[367488172,1750819860084,-513.31,0.00021062,2]
[367488173,1750819860093,-1036.8,0.00021062,2]
[367488174,1750819860103,-460.0,0.00021062,2]
[367488175,1750819860112,-1392.24,0.00021062,2]
[367488176,1750819860121,-460.0,0.00021062,2]
[367488177,1750819860130,-1023.24,0.00021062,2]
[367488178,1750819860139,-460.0,0.00021062,2]
[367488179,1750819860148,-217.205669,0.00021091,2]
[367488180,1750819860158,-151.0,0.00021091,2]
[367488181,1750819860167,-460.0,0.00021091,2]
[367488182,1750819860176,-526.3,0.00021095,16]
[367488183,1750819860186,-2048.65,0.00021162,2]
[367488184,1750819860195,-4000.0,0.0002125,4]
[367488185,1750819860205,-160.0,0.00021258,3]
[367488186,1750819860217,-500.0,0.0002126,2]
[367488187,1750819860227,-13186.03557867,0.00021272,2]
[367488188,1750819860237,-6244.70143571,0.00021314,5]
[367488189,1750819860247,-500.58692096,0.00021316,2]
[367488190,1750819860258,-1548.65,0.00021334,2]
[367488191,1750819860268,-1284.68,0.00021334,2]
[367488192,1750819860278,-1749.56,0.00021334,2]
[367488193,1750819860288,-1004.1,0.00021334,2]
[367488194,1750819860298,-460.0,0.00021334,2]
[367488195,1750819860308,-899.91,0.00021335,2]
[367488196,1750819860317,-1860.25,0.00021335,2]
[367488197,1750819860327,-1227.14,0.00021335,2]
[367488198,1750819860336,-615.49,0.00021335,2]
[367488199,1750819860345,-541.36,0.00021335,2]
[367488200,1750819860355,-460.0,0.00021335,2]
[367488201,1750819860364,-460.0,0.00021335,2]
[367488202,1750819860374,-460.0,0.00021335,2]
[367488203,1750819860383,-546.23,0.00021336,2]
[367488204,1750819860392,-1196.47,0.00021336,2]
[367488205,1750819860402,-460.0,0.00021336,2]
[367488206,1750819860411,-542.36,0.00021336,2]
[367488207,1750819860421,-3048.66,0.00021336,2]
[367488208,1750819860430,-476.65,0.00021336,2]
[367488209,1750819860439,-460.0,0.00021336,2]
[367488210,1750819860448,-1191.93,0.00021336,2]
[367488211,1750819860457,-1455.28,0.00021336,2]
[367488212,1750819860465,-460.0,0.00021336,2]
[367488213,1750819860474,-460.0,0.00021336,2]
[367488214,1750819860565,-513.31,0.00021336,2]
[367488215,1750819860576,-1036.8,0.00021336,2]
[367488216,1750819860586,-460.0,0.00021336,2]
[367488217,1750819860595,-1392.24,0.00021336,2]
[367488218,1750819860605,-460.0,0.00021336,2]
[367488219,1750819860614,-1023.24,0.00021336,2]
[367488220,1750819860623,-460.0,0.00021336,2]
[367488221,1750819860632,-460.0,0.00021365,2]
[367488222,1750819860641,-526.3,0.00021369,17]
[367488223,1750819860650,-160.0,0.00021435,4]
[367488224,1750819860659,-215.0738,0.00021456,2]
[367488225,1750819860669,-151.0,0.00021486,2]
[367488226,1750819860678,-151.0,0.00021521,2]
[367488227,1750819860688,-151.0,0.00021521,2]
[367488228,1750819860697,-156.000617,0.00021521,2]
[367488229,1750819860707,-156.000617,0.00021521,2]
[367488230,1750819860716,-1544.605085,0.0002156,4]
[367488231,1750819860726,-5484.48,0.00021586,2]
[367488232,1750819860735,-6244.70143571,0.0002159,5]
[367488233,1750819860744,-5705.0,0.000216,2]
[367488234,1750819860753,-1548.65,0.00021608,2]
[367488235,1750819860763,-1284.68,0.00021608,2]
[367488236,1750819860772,-1749.56,0.00021608,2]
[367488237,1750819860781,-1004.1,0.00021608,2]
[367488238,1750819860791,-460.0,0.00021608,2]
[367488239,1750819860801,-899.91,0.00021609,2]
[367488240,1750819860811,-1860.25,0.00021609,2]
[367488241,1750819860823,-1227.14,0.00021609,2]
[367488242,1750819860832,-615.49,0.00021609,2]
[367488243,1750819860841,-541.36,0.00021609,2]
[367488244,1750819860851,-460.0,0.00021609,2]
[367488245,1750819860860,-241.61,0.00021609,2]
[367488246,1750819860869,-392.21763389,0.00021609,2]
[367488247,1750819860878,-151.0,0.0002161,2]
[367488248,1750819860888,-546.23,0.0002161,2]
[367488249,1750819860897,-151.0,0.0002161,2]
[367488250,1750819860906,-157.328734,0.0002161,2]
[367488251,1750819860915,-1196.47,0.0002161,2]
[367488252,1750819860925,-325.73,0.0002161,2]
[367488253,1750819860936,-653.279441,0.0002161,2]
[367488254,1750819860946,-653.279441,0.0002161,2]
[367488255,1750819860956,-542.36,0.0002161,2]
[367488256,1750819860965,-3048.66,0.0002161,2]
[367488257,1750819860975,-476.65,0.0002161,2]
[367488258,1750819860984,-460.0,0.0002161,2]
[367488259,1750819860993,-1191.93,0.0002161,2]
[367488260,1750819861002,-1455.28,0.0002161,2]
[367488261,1750819861011,-460.0,0.0002161,2]
[367488262,1750819861020,-460.0,0.0002161,2]
[367488263,1750819861030,-513.31,0.0002161,2]
[367488264,1750819861039,-1036.8,0.0002161,2]
[367488265,1750819861048,-460.0,0.0002161,2]
[367488266,1750819861057,-1392.24,0.0002161,2]
[367488267,1750819861066,-460.0,0.0002161,2]
[367488268,1750819861075,-1023.24,0.0002161,2]
[367488269,1750819861084,-460.0,0.0002161,2]
[367488270,1750819861094,-160.0,0.00021613,5]
[367488271,1750819861103,-15000.0,0.00021626,2]
[367488272,1750819861114,-460.0,0.00021639,2]
[367488273,1750819861123,-200.0,0.0002164,3]
[367488274,1750819861132,-526.3,0.00021643,18]
[367488275,1750819861142,-166.08289692,0.00021644,2]
[367488276,1750819861151,-16000.0,0.00021648,2]
[367488277,1750819861160,-1489.57,0.00021661,2]
[367488278,1750819861170,-1489.57,0.00021761,2]
[367488279,1750819861179,-160.0,0.0002179,6]
[367488280,1750819861189,-166.08289692,0.00021808,2]
[367488281,1750819861198,-13186.03557867,0.00021827,2]
[367488282,1750819861207,-1000.0,0.0002185,5]
[367488283,1750819861219,-1489.57,0.00021861,2]
[367488284,1750819861228,-6244.70143571,0.00021866,6]
[367488285,1750819861238,-444.28628516,0.00021878,2]
[367488286,1750819861247,-168.0,0.00021879,2]
[367488287,1750819861258,-1548.65,0.00021882,2]
[367488288,1750819861268,-1284.68,0.00021882,2]
[367488289,1750819861278,-1749.56,0.00021882,2]
[367488290,1750819861287,-1004.1,0.00021882,2]
[367488291,1750819861298,-575.66,0.00021882,2]
[367488292,1750819861307,-899.91,0.00021883,2]
[367488293,1750819861316,-1860.25,0.00021883,2]
[367488294,1750819861325,-1227.14,0.00021883,2]
[367488295,1750819861335,-615.49,0.00021883,2]
[367488296,1750819861344,-541.36,0.00021883,2]
[367488297,1750819861353,-460.0,0.00021883,2]
[367488298,1750819861362,-546.23,0.00021884,2]
[367488299,1750819861371,-1196.47,0.00021884,2]
[367488300,1750819861381,-542.36,0.00021884,2]
[367488301,1750819861390,-3048.66,0.00021884,2]
[367488302,1750819861399,-476.65,0.00021884,2]
[367488303,1750819861408,-460.0,0.00021884,2]
[367488304,1750819861417,-1191.93,0.00021884,2]
[367488305,1750819861427,-1455.28,0.00021884,2]
[367488306,1750819861436,-479.58,0.00021884,2]
[367488307,1750819861445,-487.49,0.00021884,2]
[367488308,1750819861454,-513.31,0.00021884,2]
[367488309,1750819861464,-1036.8,0.00021884,2]
[367488310,1750819861473,-460.0,0.00021884,2]
[367488311,1750819861482,-1392.24,0.00021884,2]
[367488312,1750819861492,-460.0,0.00021884,2]
[367488313,1750819861501,-1023.24,0.00021884,2]
[367488314,1750819861510,-189.0,0.00021884,2]
[367488315,1750819861519,-153.71839,0.00021899,5]
[367488316,1750819861528,-460.0,0.00021913,2]
[367488317,1750819861537,-526.3,0.00021917,19]
[367488318,1750819861547,-201.96930778,0.00021917,2]
[367488319,1750819861556,-460.0,0.00021917,2]
[367488320,1750819861565,-541.07881641,0.00021917,2]
[367488321,1750819861575,-500.0,0.00021917,2]
[367488322,1750819861585,-500.0,0.00021917,2]
[367488323,1750819861594,-500.0,0.00021917,2]
[367488324,1750819861603,-500.0,0.00021917,2]
[367488325,1750819861611,-500.0,0.00021917,2]
[367488326,1750819861620,-512.51508435,0.00021917,2]
[367488327,1750819861629,-500.0,0.00021917,2]
[367488328,1750819861638,-500.0,0.00021917,2]
[367488329,1750819861647,-203.53721826,0.00021917,2]
[367488330,1750819861656,-166.0,0.00021918,2]
[367488331,1750819861665,-151.0,0.00021918,2]
[367488332,1750819861674,-151.0,0.00021918,2]
[367488333,1750819861683,-151.0,0.00021918,2]
[367488334,1750819861692,-151.0,0.00021918,2]
[367488335,1750819861701,-151.0,0.00021918,2]
[367488336,1750819861710,-151.0,0.00021918,2]
[367488337,1750819861720,-151.0,0.00021918,2]
[367488338,1750819861729,-151.0,0.00021918,2]
[367488339,1750819861739,-151.0,0.00021918,2]
[367488340,1750819861749,-151.0,0.00021918,2]
[367488341,1750819861758,-151.0,0.00021918,2]
[367488342,1750819861767,-266.005602,0.00021918,2]
[367488343,1750819861776,-151.0,0.00021918,2]
[367488344,1750819861786,-151.0,0.00021918,2]
[367488345,1750819861795,-151.0,0.00021918,2]
[367488346,1750819861881,-151.0,0.00021918,2]
[367488347,1750819861892,-151.0,0.00021918,2]
[367488348,1750819861901,-151.0,0.00021918,2]
[367488349,1750819861910,-151.0,0.00021918,2]
[367488350,1750819861918,-151.0,0.00021918,2]
[367488351,1750819861927,-401.149339,0.00021918,7]
[367488352,1750819861936,-301.5438891,0.00021918,3]
[367488353,1750819861946,-150.0,0.00021918,2]
[367488354,1750819861955,-1489.57,0.00021961,3]
[367488355,1750819861964,-160.0,0.00021968,7]
[367488356,1750819861973,-166.08289692,0.00021973,2]
[367488357,1750819861982,-500.0,0.00021973,2]
[367488358,1750819861991,-500.0,0.00021973,2]
[367488359,1750819862000,-500.0,0.00021973,2]
[367488360,1750819862009,-610.5313351,0.00021973,2]
[367488361,1750819862018,-500.56052383,0.00021973,2]
[367488362,1750819862027,-500.0,0.00021973,2]
[367488363,1750819862036,-500.0,0.00021973,2]
[367488364,1750819862045,-500.0,0.00021973,2]
[367488365,1750819862055,-500.0,0.00021973,2]
[367488366,1750819862064,-563.67730811,0.00021973,2]
[367488367,1750819862075,-500.0,0.00021973,2]
[367488368,1750819862084,-500.0,0.00021973,2]
[367488369,1750819862093,-500.0,0.00021973,2]
[367488370,1750819862102,-500.0,0.00021973,2]
[367488371,1750819862111,-500.0,0.00021973,2]
[367488372,1750819862121,-500.0,0.00021973,2]
[367488373,1750819862131,-500.0,0.00021973,2]
[367488374,1750819862140,-501.98846051,0.00021973,2]
[367488375,1750819862150,-500.0,0.00021973,2]
[367488376,1750819862160,-500.0,0.00021973,2]
[367488377,1750819862169,-500.0,0.00021973,2]
[367488378,1750819862179,-500.0,0.00021973,2]
[367488379,1750819862189,-500.74238403,0.00021973,2]
[367488380,1750819862199,-500.0,0.00021973,2]
[367488381,1750819862208,-500.0,0.00021973,2]
[367488382,1750819862218,-500.0,0.00021973,2]
[367488383,1750819862234,-500.0,0.00021973,2]
[367488384,1750819862243,-500.0,0.00021973,2]
[367488385,1750819862253,-500.0,0.00021973,2]
[367488386,1750819862263,-500.0,0.00021973,2]
[367488387,1750819862272,-500.0,0.00021973,2]
[367488388,1750819862282,-500.67574128,0.00021973,2]
[367488389,1750819862291,-500.0,0.00021973,2]
[367488390,1750819862302,-500.0,0.00021973,2]
[367488391,1750819862313,-500.0,0.00021973,2]
[367488392,1750819862323,-500.1998707,0.00021973,2]
[367488393,1750819862332,-500.0,0.00021973,2]
[367488394,1750819862341,-500.0,0.00021973,2]
[367488395,1750819862350,-300.55791755,0.00021973,2]
[367488396,1750819862360,-500.0,0.00021973,2]
[367488397,1750819862369,-600.0,0.00021973,2]
[367488398,1750819862378,-500.0,0.00021973,2]
[367488399,1750819862387,-500.0,0.00021973,2]
[367488400,1750819862397,-500.0,0.00021973,2]
[367488401,1750819862406,-500.0,0.00021973,2]
[367488402,1750819862416,-500.0,0.00021973,2]
[367488403,1750819862426,-500.0,0.00021973,2]
[367488404,1750819862436,-500.0,0.00021973,2]
[367488405,1750819862445,-507.06280126,0.00021973,2]
[367488406,1750819862455,-500.0,0.00021973,2]
[367488407,1750819862464,-500.0,0.00021973,2]
[367488408,1750819862485,-500.0,0.00021973,2]
[367488409,1750819862501,-500.0,0.00021973,2]
[367488410,1750819862522,-500.74666282,0.00021973,2]
[367488411,1750819862542,-500.0,0.00021973,2]
[367488412,1750819862562,-500.0,0.00021973,2]
[367488413,1750819862577,-500.0,0.00021973,2]
[367488414,1750819862596,-500.0,0.00021973,2]
[367488415,1750819862611,-500.0,0.00021973,2]
[367488416,1750819862628,-500.0,0.00021973,2]
[367488417,1750819862648,-154.690012,0.00021973,7]
[367488418,1750819862666,-151.955744,0.00021973,7]
[367488419,1750819862679,-151.0,0.00021973,7]
[367488420,1750819862699,-151.0,0.00021973,7]
[367488421,1750819862713,-151.0,0.00021973,7]
[367488422,1750819862728,-154.809428,0.00021973,7]
[367488423,1750819862741,-156.000617,0.00021973,7]
[367488424,1750819862756,-156.000617,0.00021973,7]
[367488425,1750819862771,-200.0,0.00021999,2]
[367488426,1750819862785,-483748.70052433,0.00022,2]
[367488427,1750819862808,-217065.40050601,0.00022,2]
[367488428,1750819863068,-1626.53407425,0.00016893,2]
[367488429,1750819863080,-3373.46592575,0.00016893,2]
[367488430,1750819863090,-460.0,0.00017226,2]
[367488431,1750819863100,-460.0,0.000175,2]
[367488432,1750819863110,-460.0,0.000175,2]
[367488433,1750819863119,-159.051972,0.000175,2]
[367488434,1750819863129,-151.0,0.00017772,2]
[367488435,1750819863139,-460.0,0.00017774,2]
[367488436,1750819863149,-460.0,0.00017774,2]
[367488437,1750819863159,-159.051972,0.00017803,2]
[367488438,1750819863168,-151.0,0.00017803,2]
[367488439,1750819863178,-159.051972,0.00017944,2]
[367488440,1750819863189,-460.0,0.00018048,2]
[367488441,1750819863199,-519.86919444,0.00018048,2]
[367488442,1750819863209,-151.0,0.00018048,2]
[367488443,1750819863219,-159.051972,0.00018077,2]
[367488444,1750819863480,-151.0,0.00018321,2]
[367488445,1750819863499,-460.0,0.00018322,2]
[367488446,1750819863512,-159.051972,0.00018351,2]
[367488447,1750819863521,-151.0,0.00018595,2]